[Event "ESTCC-50 2025"]
[Site "Swidnica"]
[Date "2025.04.05"]
[Round "1.9"]
[White "Bischoff, Klaus"]
[Black "Adams, Michael"]
[Result "0-1"]
[Annotator "TA"]
[ECO "A28"]
[WhiteElo "2425"]
[BlackElo "2661"]
[PlyCount "114"]
[EventDate "2025.04.05"]
[EventType "team-tourn"]
[EventCountry "POL"]
[SourceTitle "playchess.com"]
[Source "ChessBase"]
[SourceQuality "1"]
[TimeControl "40/5400+30:1800+30"]

{[%evp 9,114,-7,0,-9,-2,-6,-6,-5,-7,-12,0,-19,-18,-5,-8,-14,-12,-33,-12,-16,0,-22,-14,-17,-19,-58,-65,-49,-44,-49,-41,-59,-34,-52,-36,-39,-29,-37,-40,-39,-43,-52,-26,-45,-3,-23,-7,0,0,0,0,-25,-13,-27,-18,-29,-8,-21,-17,-108,-101,-115,-115,-110,-101,-158,-159,-154,-148,-218,-218,-218,-217,-215,-215,-229,-229,-219,-208,-273,-255,-262,-263,-328,-255,-275,-273,-282,-282,-282,-282,-282,-282,-362,-313,-321,-319,-318,-307,-395,-383,-360,-262,-423,-386,-433,-379]} 1. c4 {[%emt 0:00:10]} e5 {[%emt 0:00:10]} 2. Nc3 {[%emt 0:00:28]} Nf6 {[%emt 0:00:17]} 3. Nf3 {[%emt 0:00:37]} Nc6 {[%emt 0:00:10]} 4. d3 {[%emt 0:00:15]} g6 {[%emt 0:00:38]} 5. e3 {[%emt 0:01:53]} Bg7 {[%emt 0:00:22]} 6. Be2 {[%emt 0:00:19] A28: English Opening: Four Knights Variation.} O-O {[%emt 0:00:27]} 7. a3 {[%emt 0:01:07]} d5 {[%emt 0:04:23]} 8. cxd5 {[%emt 0:00:29] The position is equal.} Nxd5 9. Bd2 {[%emt 0:08:56]} a5 {[%emt 0:01:58] has lost popularity (9...Be6).} 10. Qc2 {[%emt 0:02:52]} Nxc3 {[%emt 0:08:19]} 11. Bxc3 {[%emt 0:02:33]} a4 {[%emt 0:01:10]} 12. O-O {[%emt 0:09:56]} Be6 {[%emt 0:02:20]} 13. Rac1 {[%emt 0:11:00]} Re8 {[%emt 0:01:32]} 14. Nd2 {[%emt 0:04:09]} Re7 $146 {[%emt 0:06:09]} (14... Bd5 15. Rfd1 Re7 16. Bg4 h6 17. h3 Kh7 18. e4 Be6 19. Bxe6 Rxe6 20. Nf3 Qd7 {1-0 Gumularz,S (2590)-Pajeken,J (2424) Bremen Jubilee 125 op 2024 (8)}) 15. Nc4 {[%emt 0:07:36]} Bd5 {[%emt 0:03:53]} 16. Rfd1 {[%emt 0:06:58]} Rd7 {[%emt 0:00:46]} 17. Be1 {[%emt 0:03:46]} Qg5 {[%emt 0:03:39][%csl Gd5][%cal Rg5g2]} 18. Bf1 {[%emt 0:02:09]} Bf3 {[%emt 0:13:37]} 19. Nd2 $1 {[%emt 0:01:19]} Bxd1 {[%emt 0:00:14]} 20. Qxd1 {[%emt 0:00:08]} f5 {[%emt 0:08:44] Wards off Ne4} 21. Rc4 $1 {[%emt 0:01:17]} Kh8 {[%emt 0:06:14]} 22. Rxa4 {[%emt 0:01:47]} Qd8 {[%emt 0:05:14]} 23. Rxa8 {[%emt 0:05:54]} Qxa8 24. Qc2 {[%emt 0:00:13]} Nd8 {[%emt 0:01:19][%cal Bc6d8,Bd8f7,Bf7d6][%mdl 32]} 25. Nf3 {[%emt 0:00:39]} b6 {[%emt 0:04:56]} 26. e4 {[%emt 0:07:04]} Nf7 {[%emt 0:03:53]} 27. Bc3 {[%emt 0:01:21]} Re7 28. a4 {[%emt 0:01:22]} Nd6 {[%emt 0:07:07][%cal Rf5e4]} 29. Nd2 {[%emt 0:00:44]} c5 {[%emt 0:00:46]} 30. Be2 {[%emt 0:02:18]} Ra7 {[%emt 0:04:33]} 31. b3 {[%emt 0:00:32]} b5 {[%cal Rb5a4]} 32. Bd1 {[%emt 0:00:32]} fxe4 {[%emt 0:07:40]} 33. dxe4 {[%emt 0:00:24]} c4 {[%emt 0:00:27]} 34. axb5 {[%emt 0:03:38]} (34. a5 $11) 34... Nxb5 $17 {[%emt 0:00:14] Black converts the advantage convincingly.} 35. Nxc4 {[%emt 0:02:16]} Nxc3 {[%emt 0:01:08]} 36. Qxc3 {[%emt 0:00:08]} Qxe4 {[%emt 0:00:53] ...Qd4 is the strong threat.} 37. Nd6 {[%emt 0:02:47] [#]} (37. g3 $142) 37... Qd5 $1 $40 {[%emt 0:01:44][%csl LRd1,LRd6][%mdl 128] Black is out for blood.} 38. Qc8+ {[%emt 0:00:24]} Qg8 {[%emt 0:00:03]} 39. Kf1 {[%emt 0:05:01]} (39. Qxg8+ $17 Kxg8 40. Be2) 39... Qxc8 $19 {[%emt 0:01:12]} 40. Nxc8 {[%emt 0:00:00][%mdl 4096] Endgame KRB-KBN} Ra2 {[%emt 0:00:00]} 41. Bf3 {[%emt 0:02:19]} Bf8 {[%emt 0:03:24] Repels Nd6} 42. Nb6 {[%emt 0:00:38] [#]} Bc5 $1 {[%emt 0:01:58][%csl LRb6,LRf2]} 43. Nc4 {[%emt 0:00:10]} Bd4 {[%emt 0:01:31]} 44. b4 {[%emt 0:01:42]} Rxf2+ {[%emt 0:01:30]} 45. Ke1 {[%emt 0:00:06]} Rc2 {[%emt 0:00:55]} 46. Bd5 {[%emt 0:00:22]} Rc1+ {[%emt 0:04:39]} 47. Kd2 {[%emt 0:01:28]} Rb1 {[%emt 0:00:07]} 48. Kd3 {[%emt 0:01:51]} Rxb4 {[%emt 0:01:04]} 49. h3 {[%emt 0:01:46]} Kg7 {[%emt 0:01:14]} 50. Nd2 {[%emt 0:00:38]} Bb6 {[%emt 0:02:02]} 51. Bc4 {[%emt 0:00:27]} Ba5 {[%emt 0:03:50]} 52. Ne4 {[%emt 0:00:22]} Rb2 {[%emt 0:00:09]} 53. g3 {[%emt 0:00:13]} Bb6 {[%emt 0:02:21]} 54. h4 {[%emt 0:00:41]} Rg2 {[%emt 0:01:34]} 55. Be6 {[%emt 0:00:29]} Bg1 {[%emt 0:04:27]} 56. Bh3 $2 {[%emt 0:00:15]} (56. Bd5 {keeps fighting.}) 56... Ra2 {[%emt 0:00:55]} 57. Be6 {[%emt 0:00:17]} Ra3+ {[%emt 0:01:47] Weighted Error Value: White=0.21 (precise) /Black=0.11 (very precise)   Mistake:       	White=4     	---        Inaccurate:     	White=2     	Black=2      OK:         	White=17    	Black=18     Best:        	White=2     	Black=4      Strong:       	White=2     	Black=2} 0-1

[Event "ESTCC-50 2025"]
[Site "Swidnica"]
[Date "2025.04.05"]
[Round "1.10"]
[White "Emms, John M"]
[Black "Holzke, Frank"]
[Result "1/2-1/2"]
[Annotator "RC"]
[ECO "C47"]
[WhiteElo "2411"]
[BlackElo "2412"]
[PlyCount "56"]
[EventDate "2025.04.05"]
[EventType "team-tourn"]
[EventCountry "POL"]
[SourceTitle "playchess.com"]
[Source "ChessBase"]
[SourceQuality "1"]
[WhiteTeam "England"]
[BlackTeam "Germany"]
[TimeControl "40/5400+30:1800+30"]

1. e4 {[%emt 0:00:18]} e5 {[%emt 0:00:18]} 2. Nf3 {[%emt 0:01:19]} Nc6 {[%emt 0:00:12]} 3. Nc3 {[%emt 0:00:22]} Nf6 {[%emt 0:00:21]} 4. d4 {[%emt 0:00:07]} exd4 {[%emt 0:00:20]} 5. Nxd4 {[%emt 0:00:07]} Bb4 {[%emt 0:00:21]} 6. Nxc6 {[%emt 0:00:16]} bxc6 {[%emt 0:00:17]} 7. Bd3 {[%emt 0:00:18]} d5 {[%emt 0:00:24]} 8. exd5 {[%emt 0:00:29]} O-O {[%emt 0:00:18]} 9. O-O {[%emt 0:00:19]} cxd5 {[%emt 0:01:24]} 10. h3 {[%emt 0:01:47]} c6 {[%emt 0:14:09]} 11. Qf3 {[%emt 0:01:42]} Re8 {[%emt 0:00:57]} 12. Bf4 {[%emt 0:03:30]} Bd6 {[%emt 0:02:03]} 13. Rfe1 {[%emt 0:09:51]} Bxf4 {[%emt 0:03:04]} 14. Qxf4 {[%emt 0:03:06]} Be6 {[%emt 0:00:38]} 15. b4 {[%emt 0:13:55]} a5 {[%emt 0:05:12]} 16. a3 {[%emt 0:00:52]} Qb8 {[%emt 0:01:00]} 17. Qd4 {[%emt 0:16:23]} Qa7 {[%emt 0:01:46]} 18. Qxa7 {[%emt 0:04:41]} Rxa7 {[%emt 0:00:10]} 19. b5 {[%emt 0:01:09]} c5 {[%emt 0:08:28]} 20. b6 {[%emt 0:06:29]} Rae7 {[%emt 0:08:05]} 21. Rab1 {[%emt 0:07:24]} Kf8 {[%emt 0:13:30]} 22. Bb5 {[%emt 0:06:06]} Rb8 {[%emt 0:01:08]} 23. Bc6 {[%emt 0:02:09]} d4 {[%emt 0:15:45]} 24. Na4 {[%emt 0:11:14]} Bd7 {[%emt 0:01:32]} 25. Bxd7 {[%emt 0:01:54]} Rxe1+ {[%emt 0:01:36]} 26. Rxe1 {[%emt 0:00:02]} Nxd7 {[%emt 0:00:11]} 27. Kf1 {[%emt 0:02:41]} c4 {[%emt 0:01:55]} 28. Re4 {[%emt 0:02:20]} Nxb6 {[%emt 0:02:48]} 1/2-1/2

[Event "ESTCC-50 2025"]
[Site "Swidnica"]
[Date "2025.04.05"]
[Round "1.11"]
[White "Boensch, Uwe"]
[Black "Flear, Glenn C"]
[Result "1/2-1/2"]
[Annotator "RC"]
[ECO "E10"]
[WhiteElo "2465"]
[BlackElo "2366"]
[PlyCount "52"]
[EventDate "2025.04.05"]
[EventType "team-tourn"]
[EventCountry "POL"]
[SourceTitle "playchess.com"]
[Source "ChessBase"]
[SourceQuality "1"]
[WhiteTeam "Germany"]
[BlackTeam "England"]
[TimeControl "40/5400+30:1800+30"]

1. d4 {[%emt 0:00:05]} Nf6 {[%emt 0:00:24]} 2. c4 {[%emt 0:00:12]} e6 {[%emt 0:00:09]} 3. Nf3 {[%emt 0:00:05]} d5 {[%emt 0:00:15]} 4. e3 {[%emt 0:00:24]} a6 {[%emt 0:01:18]} 5. b3 {[%emt 0:01:45]} Nbd7 {[%emt 0:01:11]} 6. Nbd2 {[%emt 0:01:05]} b6 {[%emt 0:01:08]} 7. Bd3 {[%emt 0:03:21]} Bb7 {[%emt 0:00:51]} 8. O-O {[%emt 0:04:02]} Bd6 {[%emt 0:01:21]} 9. Bb2 {[%emt 0:00:23]} O-O {[%emt 0:02:30]} 10. Qe2 {[%emt 0:13:40]} Ne4 {[%emt 0:04:18]} 11. Rfd1 {[%emt 0:06:09]} Qe7 {[%emt 0:05:13]} 12. Nf1 {[%emt 0:08:39]} dxc4 {[%emt 0:19:31]} 13. bxc4 {[%emt 0:03:29]} e5 {[%emt 0:03:57]} 14. c5 {[%emt 0:38:35]} bxc5 {[%emt 0:00:14]} 15. dxe5 {[%emt 0:00:18]} Nxe5 {[%emt 0:00:52]} 16. Bxe4 {[%emt 0:02:57]} Bxe4 {[%emt 0:00:17]} 17. Nxe5 {[%emt 0:00:08]} Bxe5 {[%emt 0:00:08]} 18. Bxe5 {[%emt 0:00:16]} Qxe5 {[%emt 0:00:08]} 19. Rac1 {[%emt 0:00:04]} h6 {[%emt 0:03:00]} 20. Qc4 {[%emt 0:01:00]} Rfd8 {[%emt 0:03:04]} 21. Rxd8+ {[%emt 0:01:35]} Rxd8 {[%emt 0:00:11]} 22. Qxa6 {[%emt 0:00:07]} Ra8 {[%emt 0:18:00]} 23. Qc4 {[%emt 0:00:23]} Bd5 {[%emt 0:00:38]} 24. Qxc5 {[%emt 0:00:17]} Rxa2 {[%emt 0:01:49]} 25. Qd4 {[%emt 0:04:30]} Qxd4 {[%emt 0:02:43]} 26. exd4 {[%emt 0:00:02]} c6 1/2-1/2

[Event "ESTCC-50 2025"]
[Site "Swidnica"]
[Date "2025.04.05"]
[Round "1.12"]
[White "Davies, Nigel R"]
[Black "Tischbierek, Raj"]
[Result "1/2-1/2"]
[Annotator "RC"]
[ECO "A14"]
[WhiteElo "2309"]
[BlackElo "2418"]
[PlyCount "35"]
[EventDate "2025.04.05"]
[EventType "team-tourn"]
[EventCountry "POL"]
[SourceTitle "playchess.com"]
[Source "ChessBase"]
[SourceQuality "1"]
[WhiteTeam "England"]
[BlackTeam "Germany"]
[TimeControl "40/5400+30:1800+30"]

1. Nf3 {[%emt 0:00:08]} d5 {[%emt 0:00:24]} 2. c4 {[%emt 0:00:21]} e6 {[%emt 0:00:37]} 3. g3 {[%emt 0:01:08]} Nf6 {[%emt 0:03:40]} 4. Bg2 {[%emt 0:00:13]} Be7 {[%emt 0:00:42]} 5. O-O {[%emt 0:00:13]} O-O {[%emt 0:00:06]} 6. b3 {[%emt 0:00:21]} c5 {[%emt 0:03:41]} 7. cxd5 {[%emt 0:02:28]} Nxd5 {[%emt 0:02:40]} 8. Bb2 {[%emt 0:00:18]} Nc6 {[%emt 0:05:18]} 9. d4 {[%emt 0:00:30]} cxd4 {[%emt 0:04:33]} 10. Nxd4 {[%emt 0:00:42]} Bd7 {[%emt 0:11:30]} 11. Nc3 {[%emt 0:13:00]} Nxc3 {[%emt 0:11:05]} 12. Bxc3 {[%emt 0:00:09]} Rc8 {[%emt 0:00:12]} 13. Qd2 {[%emt 0:21:46]} Nxd4 {[%emt 0:13:33]} 14. Bxd4 {[%emt 0:00:08]} Bc6 {[%emt 0:00:28]} 15. Bxc6 {[%emt 0:02:23]} Rxc6 {[%emt 0:00:29]} 16. Qb2 {[%emt 0:00:20]} Bf6 {[%emt 0:09:18]} 17. Rad1 {[%emt 0:01:24]} Qe7 {[%emt 0:04:18]} 18. Bxf6 {[%emt 0:05:17]} 1/2-1/2

[Event "ESTCC-50 2025"]
[Site "Swidnica"]
[Date "2025.04.05"]
[Round "1.13"]
[White "Lalic, Susan K"]
[Black "Zych, Marek"]
[Result "1/2-1/2"]
[Annotator "ChessBase"]
[ECO "B31"]
[WhiteElo "2227"]
[BlackElo "1942"]
[PlyCount "76"]
[EventDate "2025.04.05"]
[EventType "team-tourn"]
[EventCountry "POL"]
[SourceTitle "playchess.com"]
[Source "ChessBase"]
[SourceQuality "1"]
[TimeControl "40/5400+30:1800+30"]

1. e4 {[%emt 0:00:06]} c5 {[%emt 0:00:12]} 2. Nf3 {[%emt 0:00:14]} Nc6 {[%emt 0:00:14]} 3. Bb5 {[%emt 0:00:22]} g6 {[%emt 0:00:11]} 4. O-O {[%emt 0:00:52]} Bg7 {[%emt 0:00:29]} 5. Re1 {[%emt 0:00:59]} Nf6 {[%emt 0:00:34]} 6. e5 {[%emt 0:01:14]} Nd5 {[%emt 0:01:02]} 7. Nc3 {[%emt 0:00:18]} Nc7 {[%emt 0:00:15]} 8. Bxc6 {[%emt 0:00:24]} dxc6 {[%emt 0:00:48]} 9. Ne4 {[%emt 0:01:20]} Ne6 {[%emt 0:01:08]} 10. d3 {[%emt 0:08:41]} O-O {[%emt 0:01:23]} 11. Be3 {[%emt 0:07:24]} b6 {[%emt 0:02:22]} 12. Qd2 {[%emt 0:13:24]} f5 {[%emt 0:09:23]} 13. exf6 {[%emt 0:00:19]} exf6 {[%emt 0:00:20]} 14. Bh6 {[%emt 0:04:07]} Nd4 {[%emt 0:02:02]} 15. Nxd4 {[%emt 0:00:43]} Qxd4 {[%emt 0:06:12]} 16. Nc3 {[%emt 0:14:04]} Bf5 {[%emt 0:17:24]} 17. Re7 {[%emt 0:09:03]} Rf7 {[%emt 0:01:57]} 18. Rae1 {[%emt 0:03:10]} Raf8 {[%emt 0:02:09]} 19. h3 {[%emt 0:13:48]} Qd8 {[%emt 0:04:30]} 20. Rxf7 {[%emt 0:01:05]} Rxf7 {[%emt 0:02:02]} 21. Bxg7 {[%emt 0:02:02]} Kxg7 {[%emt 0:01:06]} 22. Qe3 {[%emt 0:01:23]} h5 {[%emt 0:04:19]} 23. b3 {[%emt 0:01:54]} Qd4 {[%emt 0:02:52]} 24. Qd2 {[%emt 0:00:11]} Qd7 {[%emt 0:01:49]} 25. Qe2 {[%emt 0:04:04]} h4 {[%emt 0:07:10]} 26. Nd1 {[%emt 0:01:54]} g5 {[%emt 0:06:35]} 27. Ne3 {[%emt 0:00:54]} Be6 {[%emt 0:03:21]} 28. Nf1 {[%emt 0:03:24]} Bf5 {[%emt 0:01:09]} 29. Nh2 {[%emt 0:00:37]} Kf8 {[%emt 0:02:25]} 30. Qh5 {[%emt 0:03:42]} Re7 {[%emt 0:01:43]} 31. Qh8+ {[%emt 0:00:37]} Kf7 {[%emt 0:00:27]} 32. Rxe7+ {[%emt 0:00:14]} Qxe7 {[%emt 0:00:45]} 33. Qh5+ {[%emt 0:00:32]} Kg7 {[%emt 0:02:12]} 34. Qf3 {[%emt 0:00:42]} Qe6 {[%emt 0:00:54]} 35. Nf1 {[%emt 0:00:22]} Qd7 {[%emt 0:00:39]} 36. Ne3 {[%emt 0:00:22]} Be6 {[%emt 0:00:10]} 37. Qe4 {[%emt 0:03:00]} Bd5 {[%emt 0:03:12]} 38. Nxd5 {[%emt 0:00:35]} cxd5 {[%emt 0:00:19]} 1/2-1/2

[Event "ESTCC-50 2025"]
[Site "Swidnica"]
[Date "2025.04.05"]
[Round "1.14"]
[White "Szmyd, Marek"]
[Black "Lauterbach, Ingrid"]
[Result "1-0"]
[Annotator "NA"]
[ECO "B07"]
[WhiteElo "1900"]
[BlackElo "1998"]
[PlyCount "77"]
[EventDate "2025.04.05"]
[EventType "team-tourn"]
[EventCountry "POL"]
[SourceTitle "playchess.com"]
[Source "ChessBase"]
[SourceQuality "1"]
[TimeControl "40/5400+30:1800+30"]

1. e4 {[%emt 0:00:07]} d6 {[%emt 0:00:11]} 2. d4 {[%emt 0:00:11]} Nf6 {[%emt 0:00:08]} 3. Nc3 {[%emt 0:00:18]} e5 {[%emt 0:00:35]} 4. dxe5 {[%emt 0:03:00]} dxe5 {[%emt 0:00:07]} 5. Qxd8+ {[%emt 0:00:54]} Kxd8 {[%emt 0:00:05]} 6. Bc4 {[%emt 0:01:10]} Ke8 {[%emt 0:02:51]} 7. f4 {[%emt 0:07:24]} Nbd7 {[%emt 0:04:31]} 8. Nf3 {[%emt 0:03:55]} Bd6 {[%emt 0:00:29]} 9. O-O {[%emt 0:24:35]} a6 {[%emt 0:04:54]} 10. fxe5 {[%emt 0:05:28]} Nxe5 {[%emt 0:10:24]} 11. Nxe5 {[%emt 0:01:20]} Bxe5 {[%emt 0:00:09]} 12. Bf4 {[%emt 0:01:07]} Bxf4 {[%emt 0:15:01]} 13. Rxf4 {[%emt 0:00:18]} Be6 {[%emt 0:00:12]} 14. Nd5 {[%emt 0:08:09]} Bxd5 {[%emt 0:01:20]} 15. Bxd5 {[%emt 0:03:41]} Nxd5 {[%emt 0:04:12]} 16. exd5 {[%emt 0:00:04]} f6 {[%emt 0:00:15]} 17. Re1+ {[%emt 0:08:47]} Kf7 {[%emt 0:07:50]} 18. Rfe4 {[%emt 0:07:56]} Rhe8 {[%emt 0:05:50]} 19. Kf2 {[%emt 0:02:23]} Rxe4 {[%emt 0:00:30]} 20. Rxe4 {[%emt 0:00:10]} Rd8 {[%emt 0:00:02]} 21. c4 {[%emt 0:02:39]} f5 {[%emt 0:00:43]} 22. Rf4 {[%emt 0:03:00]} Kf6 {[%emt 0:02:40]} 23. g4 {[%emt 0:01:14]} g6 {[%emt 0:00:08]} 24. gxf5 {[%emt 0:04:12]} g5 {[%emt 0:03:12]} 25. Re4 {[%emt 0:02:48]} Rd7 {[%emt 0:00:13]} 26. Ke3 {[%emt 0:01:58]} Kxf5 {[%emt 0:03:08]} 27. Kd4 {[%emt 0:02:57]} h5 {[%emt 0:01:07]} 28. Re8 {[%emt 0:01:27]} Rf7 {[%emt 0:08:40]} 29. c5 {[%emt 0:00:30]} g4 {[%emt 0:03:28]} 30. d6 {[%emt 0:00:44]} cxd6 {[%emt 0:01:04]} 31. cxd6 {[%emt 0:00:03]} h4 {[%emt 0:00:21]} 32. Re7 {[%emt 0:01:16]} Rf6 {[%emt 0:03:05]} 33. Re5+ {[%emt 0:01:07]} Kg6 {[%emt 0:03:18]} 34. d7 {[%emt 0:00:19]} Rf2 {[%emt 0:09:00]} 35. Rd5 {[%emt 0:00:31]} Rxh2 {[%emt 0:03:31]} 36. d8=Q {[%emt 0:00:10]} Rd2+ {[%emt 0:00:03]} 37. Ke3 {[%emt 0:00:32]} Rxd5 {[%emt 0:00:27]} 38. Qxd5 {[%emt 0:00:12]} b5 {[%emt 0:00:17]} 39. Ke4 1-0

[Event "ESTCC-50 2025"]
[Site "Swidnica"]
[Date "2025.04.05"]
[Round "1.15"]
[White "Jackson, Sheila"]
[Black "Stec, Czeslaw"]
[Result "1/2-1/2"]
[Annotator "NA"]
[ECO "B12"]
[WhiteElo "2031"]
[BlackElo "1820"]
[PlyCount "71"]
[EventDate "2025.04.05"]
[EventType "team-tourn"]
[EventCountry "POL"]
[SourceTitle "playchess.com"]
[Source "ChessBase"]
[SourceQuality "1"]
[TimeControl "40/5400+30:1800+30"]

1. e4 {[%emt 0:00:01]} c6 {[%emt 0:00:08]} 2. d4 {[%emt 0:00:05]} d5 {[%emt 0:00:07]} 3. e5 {[%emt 0:00:28]} Bf5 {[%emt 0:00:11]} 4. h4 {[%emt 0:00:06]} h5 {[%emt 0:00:22]} 5. Bd3 {[%emt 0:00:31]} Bxd3 {[%emt 0:00:27]} 6. Qxd3 {[%emt 0:00:02]} e6 {[%emt 0:00:13]} 7. Nf3 {[%emt 0:00:38]} c5 {[%emt 0:00:34]} 8. c3 {[%emt 0:03:34]} Qb6 {[%emt 0:00:52]} 9. dxc5 {[%emt 0:05:38]} Bxc5 {[%emt 0:00:20]} 10. O-O {[%emt 0:00:09]} a5 {[%emt 0:01:24]} 11. Nbd2 {[%emt 0:01:24]} a4 {[%emt 0:03:56]} 12. Rb1 {[%emt 0:15:21]} Qa6 {[%emt 0:08:53]} 13. Qxa6 {[%emt 0:01:49]} Nxa6 {[%emt 0:00:13]} 14. b3 {[%emt 0:06:31]} axb3 {[%emt 0:01:30]} 15. axb3 {[%emt 0:13:20]} Ne7 {[%emt 0:01:18]} 16. b4 {[%emt 0:01:25]} Bb6 {[%emt 0:00:34]} 17. c4 {[%emt 0:02:34]} Kd7 {[%emt 0:02:04]} 18. g3 {[%emt 0:08:44]} Rhc8 {[%emt 0:03:10]} 19. Rd1 {[%emt 0:06:29]} Ke8 {[%emt 0:01:27]} 20. c5 {[%emt 0:05:46]} Bc7 {[%emt 0:01:06]} 21. Nf1 {[%emt 0:01:03]} b6 {[%emt 0:00:48]} 22. Be3 {[%emt 0:03:01]} bxc5 {[%emt 0:00:29]} 23. b5 {[%emt 0:03:04]} d4 {[%emt 0:02:15]} 24. Bd2 {[%emt 0:05:27]} Nb4 {[%emt 0:00:26]} 25. Bxb4 {[%emt 0:01:27]} cxb4 {[%emt 0:00:10]} 26. Rxb4 {[%emt 0:00:40]} Bb6 {[%emt 0:02:02]} 27. Nxd4 {[%emt 0:01:52]} Rd8 {[%emt 0:08:16]} 28. Ne3 {[%emt 0:01:10]} Nd5 {[%emt 0:00:15]} 29. Rc4 {[%emt 0:04:00]} Ra3 {[%emt 0:02:13]} 30. Nc6 {[%emt 0:04:28]} Nxe3 {[%emt 0:01:10]} 31. Rxd8+ {[%emt 0:01:56]} Bxd8 {[%emt 0:00:10]} 32. fxe3 {[%emt 0:00:32]} Bb6 {[%emt 0:00:12]} 33. Kg2 {[%emt 0:01:27]} Rxe3 {[%emt 0:01:06]} 34. Ra4 {[%emt 0:00:29]} Kd7 {[%emt 0:02:02]} 35. Rf4 {[%emt 0:00:24]} Ke8 {[%emt 0:01:26]} 36. Ra4 {[%emt 0:00:01]} 1/2-1/2

[Event "ESTCC-50 2025"]
[Site "Swidnica"]
[Date "2025.04.05"]
[Round "1.16"]
[White "Kilanski, Janusz"]
[Black "Fink-Nunn, Petra"]
[Result "0-1"]
[Annotator "NA"]
[ECO "C50"]
[WhiteElo "1670"]
[BlackElo "1997"]
[PlyCount "84"]
[EventDate "2025.04.05"]
[EventType "team-tourn"]
[EventCountry "POL"]
[SourceTitle "playchess.com"]
[Source "ChessBase"]
[SourceQuality "1"]
[TimeControl "40/5400+30:1800+30"]

1. e4 {[%emt 0:00:14]} e5 {[%emt 0:00:14]} 2. Nf3 {[%emt 0:00:17]} Nc6 {[%emt 0:00:10]} 3. Bc4 {[%emt 0:01:30]} Nf6 {[%emt 0:00:28]} 4. Nc3 {[%emt 0:00:43]} Bc5 {[%emt 0:02:09]} 5. O-O {[%emt 0:01:09]} d6 {[%emt 0:01:53]} 6. h3 {[%emt 0:00:49]} a6 {[%emt 0:09:01]} 7. d3 {[%emt 0:00:42]} h6 {[%emt 0:00:19]} 8. a3 {[%emt 0:01:39]} O-O {[%emt 0:01:21]} 9. Re1 {[%emt 0:08:53]} Be6 {[%emt 0:10:34]} 10. Nd5 {[%emt 0:04:49]} Bxd5 {[%emt 0:07:55]} 11. Bxd5 {[%emt 0:01:10]} Nxd5 {[%emt 0:01:39]} 12. exd5 {[%emt 0:00:03]} Ne7 {[%emt 0:01:27]} 13. c4 {[%emt 0:01:43]} Nf5 {[%emt 0:26:48]} 14. Bd2 {[%emt 0:06:24]} Qf6 {[%emt 0:02:30]} 15. Bc3 {[%emt 0:09:50]} Nh4 {[%emt 0:01:21]} 16. Re4 {[%emt 0:04:37]} Nxf3+ {[%emt 0:00:48]} 17. Qxf3 {[%emt 0:01:58]} Qxf3 {[%emt 0:00:14]} 18. gxf3 {[%emt 0:00:09]} f5 {[%emt 0:01:29]} 19. Re2 {[%emt 0:00:30]} a5 {[%emt 0:02:16]} 20. Kg2 {[%emt 0:04:54]} a4 {[%emt 0:05:56]} 21. Rg1 {[%emt 0:01:25]} f4 {[%emt 0:03:18]} 22. Re4 {[%emt 0:09:25]} Rae8 {[%emt 0:01:05]} 23. Kf1 {[%emt 0:01:44]} Kf7 {[%emt 0:05:19]} 24. d4 {[%emt 0:04:43]} exd4 {[%emt 0:01:49]} 25. Bxd4 {[%emt 0:00:43]} Rxe4 {[%emt 0:02:17]} 26. Rxg7+ {[%emt 0:00:48]} Ke8 {[%emt 0:00:03]} 27. fxe4 {[%emt 0:09:31]} Bxd4 {[%emt 0:00:03]} 28. Rxc7 {[%emt 0:00:12]} Bxb2 {[%emt 0:04:46]} 29. Rxb7 {[%emt 0:00:34]} Bxa3 {[%emt 0:00:05]} 30. Ra7 {[%emt 0:00:16]} Bc5 {[%emt 0:00:24]} 31. Rxa4 {[%emt 0:00:02]} Ke7 {[%emt 0:00:41]} 32. Kg2 {[%emt 0:06:09]} Kf6 {[%emt 0:00:32]} 33. Kf3 {[%emt 0:00:40]} Ke5 {[%emt 0:00:08]} 34. Ra1 {[%emt 0:03:45]} Rb8 {[%emt 0:00:08]} 35. Re1 Rb3+ {[%emt 0:00:22]} 36. Kg4 {[%emt 0:04:21]} Bxf2 {[%emt 0:00:22]} 37. Re2 {[%emt 0:05:24]} Rg3+ {[%emt 0:01:52]} 38. Kh5 {[%emt 0:00:10]} Rxh3+ {[%emt 0:00:24]} 39. Kg4 {[%emt 0:00:01]} Rg3+ {[%emt 0:00:19]} 40. Kh5 {[%emt 0:00:00]} Be3 {[%emt 0:00:00]} 41. Re1 {[%emt 0:06:12]} Kxe4 {[%emt 0:02:08]} 42. Kh4 {[%emt 0:03:13]} Rg1 {[%emt 0:00:41]} 0-1